fUST/lending_fUST_20260527
["ID","MTS","AMOUNT","RATE_DAILY","PERIOD"]
[423104012,1779853710000,-300.0,7.921e-05,2]
[423104013,1779853710000,-300.0,7.921e-05,2]
[423104009,1779853710000,-300.0,7.921e-05,2]
[423104015,1779853710000,-300.0,7.921e-05,2]
[423104014,1779853710000,-300.0,7.921e-05,2]
[423104017,1779853710000,-300.0,7.921e-05,2]
[423104018,1779853710000,-69.19219889,7.921e-05,2]
[423104016,1779853710000,-300.0,7.921e-05,2]
[423104010,1779853710000,-300.0,7.921e-05,2]
[423104019,1779853711000,-230.80780111,7.921e-05,2]
[423104021,1779853711000,-300.0,7.921e-05,2]
[423104020,1779853711000,-300.0,7.921e-05,2]
[423104024,1779853711000,-300.0,7.921e-05,2]
[423104022,1779853711000,-300.0,7.921e-05,2]
[423104025,1779853711000,-600.0,7.921e-05,2]
[423104023,1779853711000,-300.0,7.921e-05,2]
[423104072,1779853831000,-1899.87042264,8.118e-05,2]
[423104092,1779853832000,-300.0,8.218e-05,2]
[423104086,1779853832000,-3100.12957736,8.118e-05,2]
[423104090,1779853832000,-162.952814,8.212e-05,2]
[423104088,1779853832000,-230.0560008,8.2e-05,2]
[423104110,1779853832000,-151.0,8.264e-05,2]
[423104096,1779853832000,-500.0,8.219e-05,2]
[423104094,1779853832000,-501.30941659,8.219e-05,2]
[423104112,1779853832000,-300.0,8.382e-05,2]
[423104114,1779853832000,-300.0,8.382e-05,2]
[423104100,1779853832000,-500.0,8.219e-05,2]
[423104098,1779853832000,-502.30126502,8.219e-05,2]
[423104104,1779853832000,-500.0,8.219e-05,2]
[423104102,1779853832000,-500.0,8.219e-05,2]
[423104118,1779853832000,-12.36693697,8.382e-05,2]
[423104106,1779853832000,-500.0,8.219e-05,2]
[423104108,1779853832000,-501.26216445,8.219e-05,2]
[423104116,1779853832000,-300.0,8.382e-05,2]
[423104192,1779853838000,-500.0,8.493e-05,2]
[423104193,1779853838000,-500.0,8.493e-05,2]
[423104191,1779853838000,-500.0,8.493e-05,2]
[423104194,1779853838000,-500.0,8.493e-05,2]
[423104195,1779853838000,-500.0,8.493e-05,2]
[423104196,1779853838000,-581.73873149,8.493e-05,2]
[423104200,1779853838000,-500.0,8.493e-05,2]
[423104201,1779853838000,-500.0,8.493e-05,2]
[423104199,1779853838000,-500.0,8.493e-05,2]
[423104189,1779853838000,-126.29465258,8.492e-05,2]
[423104202,1779853838000,-500.0,8.493e-05,2]
[423104205,1779853838000,-150.78817712,8.494e-05,2]
[423104198,1779853838000,-501.05508528,8.493e-05,2]
[423104203,1779853838000,-446.67086061,8.493e-05,2]
[423104197,1779853838000,-501.32505049,8.493e-05,2]
[423104188,1779853838000,-160.0,8.439e-05,2]
[423104185,1779853838000,-300.0,8.382e-05,2]
[423104186,1779853838000,-300.0,8.382e-05,2]
[423104173,1779853838000,-158.18242311,8.218e-05,2]
[423104172,1779853838000,-300.63932019,8.218e-05,2]
[423104174,1779853838000,-287.63306303,8.382e-05,2]
[423104204,1779853838000,-550.46803623,8.494e-05,2]
[423104175,1779853838000,-300.0,8.382e-05,2]
[423104176,1779853838000,-300.0,8.382e-05,2]
[423104178,1779853838000,-300.0,8.382e-05,2]
[423104177,1779853838000,-300.0,8.382e-05,2]
[423104179,1779853838000,-300.0,8.382e-05,2]
[423104182,1779853838000,-300.0,8.382e-05,2]
[423104180,1779853838000,-300.0,8.382e-05,2]
[423104183,1779853838000,-279.80309173,8.382e-05,2]
[423104181,1779853838000,-300.0,8.382e-05,2]
[423104184,1779853838000,-20.19690827,8.382e-05,2]
[423104187,1779853838000,-230.05600079,8.4e-05,2]
[423104190,1779853838000,-375.88274243,8.492e-05,2]
[423104206,1779853838000,-308.86,8.494e-05,2]
[423104240,1779853838000,-493.20192118,8.5e-05,2]
[423104207,1779853838000,-59.51876054,8.494e-05,2]
[423104227,1779853838000,-500.0,8.5e-05,2]
[423104228,1779853838000,-500.0,8.5e-05,2]
[423104229,1779853838000,-154.95,8.5e-05,2]
[423104231,1779853838000,-500.0,8.5e-05,2]
[423104233,1779853838000,-500.0,8.5e-05,2]
[423104234,1779853838000,-438.64626595,8.5e-05,2]
[423104225,1779853838000,-280.69,8.5e-05,2]
[423104232,1779853838000,-343.15,8.5e-05,2]
[423104237,1779853838000,-500.0,8.5e-05,2]
[423104239,1779853838000,-500.0,8.5e-05,2]
[423104238,1779853838000,-500.0,8.5e-05,2]
[423104208,1779853838000,-440.48123946,8.494e-05,2]
[423104236,1779853838000,-500.0,8.5e-05,2]
[423104241,1779853838000,-424.15161394,8.5e-05,2]
[423104235,1779853838000,-500.0,8.5e-05,2]
[423104230,1779853838000,-501.83511823,8.5e-05,2]
[423104242,1779853838000,-500.0,8.5e-05,2]
[423104224,1779853838000,-503.03779532,8.5e-05,2]
[423104226,1779853838000,-520.81,8.5e-05,2]
[423104211,1779853838000,-500.0,8.494e-05,2]
[423104209,1779853838000,-500.0,8.494e-05,2]
[423104210,1779853838000,-500.0,8.494e-05,2]
[423104212,1779853838000,-500.0,8.494e-05,2]
[423104214,1779853838000,-463.48467446,8.494e-05,2]
[423104216,1779853838000,-267.53590311,8.494e-05,2]
[423104213,1779853838000,-281.23221118,8.494e-05,2]
[423104217,1779853838000,-500.0,8.494e-05,2]
[423104218,1779853838000,-500.87719087,8.494e-05,2]
[423104220,1779853838000,-500.0,8.499e-05,2]
[423104221,1779853838000,-500.0,8.499e-05,2]
[423104219,1779853838000,-183.05778713,8.499e-05,2]
[423104222,1779853838000,-573.60073869,8.499e-05,2]
[423104215,1779853838000,-500.0,8.494e-05,2]
[423104223,1779853838000,-502.54582798,8.5e-05,2]
[423104283,1779853839000,-500.0,8.502e-05,2]
[423104285,1779853839000,-500.0,8.502e-05,2]
[423104284,1779853839000,-500.0,8.502e-05,2]
[423104277,1779853839000,-500.0,8.501e-05,2]
[423104276,1779853839000,-3345.368,8.501e-05,2]
[423104279,1779853839000,-500.542023,8.501e-05,2]
[423104278,1779853839000,-500.0,8.501e-05,2]
[423104282,1779853839000,-517.03234564,8.502e-05,2]
[423104280,1779853839000,-500.0,8.501e-05,2]
[423104275,1779853839000,-500.0,8.501e-05,2]
[423104289,1779853839000,-500.0,8.502e-05,2]
[423104281,1779853839000,-194.14,8.502e-05,2]
[423104287,1779853839000,-500.0,8.502e-05,2]
[423104297,1779853839000,-544.63,8.502e-05,2]
[423104293,1779853839000,-158.5852654,8.502e-05,2]
[423104292,1779853839000,-371.46524324,8.502e-05,2]
[423104294,1779853839000,-309.6473302,8.502e-05,2]
[423104295,1779853839000,-500.0,8.502e-05,2]
[423104288,1779853839000,-545.40174975,8.502e-05,2]
[423104290,1779853839000,-455.9084597,8.502e-05,2]
[423104291,1779853839000,-244.62,8.502e-05,2]
[423104296,1779853839000,-291.03,8.502e-05,2]
[423104274,1779853839000,-500.0,8.501e-05,2]
[423104307,1779853839000,-500.95364384,8.502e-05,2]
[423104299,1779853839000,-500.0,8.502e-05,2]
[423104301,1779853839000,-500.0,8.502e-05,2]
[423104298,1779853839000,-226.16,8.502e-05,2]
[423104286,1779853839000,-629.35,8.502e-05,2]
[423104272,1779853839000,-500.0,8.501e-05,2]
[423104300,1779853839000,-500.0,8.502e-05,2]
[423104271,1779853839000,-500.0,8.501e-05,2]
[423104243,1779853839000,-500.0,8.5e-05,2]
[423104244,1779853839000,-403.56793933,8.5e-05,2]
[423104246,1779853839000,-500.0,8.5e-05,2]
[423104245,1779853839000,-500.0,8.5e-05,2]
[423104247,1779853839000,-2507.17,8.5e-05,2]
[423104251,1779853839000,-500.0,8.5e-05,2]
[423104249,1779853839000,-500.36915742,8.5e-05,2]
[423104250,1779853839000,-500.0,8.5e-05,2]
[423104248,1779853839000,-500.0,8.5e-05,2]
[423104256,1779853839000,-500.2605761,8.5e-05,2]
[423104252,1779853839000,-500.0,8.5e-05,2]
[423104255,1779853839000,-500.0,8.5e-05,2]
[423104254,1779853839000,-500.0,8.5e-05,2]
[423104273,1779853839000,-425.14838431,8.501e-05,2]
[423104253,1779853839000,-500.0,8.5e-05,2]
[423104258,1779853839000,-500.0,8.501e-05,2]
[423104259,1779853839000,-500.0,8.501e-05,2]
[423104266,1779853839000,-500.0,8.501e-05,2]
[423104264,1779853839000,-500.0,8.501e-05,2]
[423104261,1779853839000,-500.0,8.501e-05,2]
[423104260,1779853839000,-500.0,8.501e-05,2]
[423104262,1779853839000,-500.0,8.501e-05,2]
[423104263,1779853839000,-495.44,8.501e-05,2]
[423104265,1779853839000,-500.0,8.501e-05,2]
[423104267,1779853839000,-395.78,8.501e-05,2]
[423104268,1779853839000,-500.0,8.501e-05,2]
[423104269,1779853839000,-500.0,8.501e-05,2]
[423104270,1779853839000,-500.0,8.501e-05,2]
[423104257,1779853839000,-500.0,8.5e-05,2]
[423104302,1779853839000,-521.56710751,8.502e-05,2]
[423104309,1779853839000,-501.2460802,8.502e-05,2]
[423104304,1779853839000,-500.0,8.502e-05,2]
[423104338,1779853839000,-76549.39240923,8.7e-05,2]
[423104339,1779853839000,-500.0,8.767e-05,2]
[423104344,1779853839000,-500.0,8.767e-05,2]
[423104340,1779853839000,-500.0,8.767e-05,2]
[423104345,1779853839000,-524.35356071,8.767e-05,2]
[423104341,1779853839000,-500.0,8.767e-05,2]
[423104346,1779853839000,-500.0,8.767e-05,2]
[423104347,1779853839000,-500.0,8.768e-05,2]
[423104348,1779853839000,-500.0,8.768e-05,2]
[423104349,1779853839000,-500.0,8.768e-05,2]
[423104354,1779853839000,-500.0,8.774e-05,2]
[423104356,1779853839000,-500.0,8.774e-05,2]
[423104352,1779853839000,-520.81,8.774e-05,2]
[423104350,1779853839000,-500.0,8.768e-05,2]
[423104355,1779853839000,-500.0,8.774e-05,2]
[423104351,1779853839000,-157.56081115,8.768e-05,2]
[423104353,1779853839000,-500.0,8.774e-05,2]
[423104358,1779853839000,-500.0,8.774e-05,2]
[423104357,1779853839000,-500.0,8.774e-05,2]
[423104359,1779853839000,-500.0,8.774e-05,2]
[423104360,1779853839000,-500.0,8.774e-05,2]
[423104361,1779853839000,-2507.17,8.774e-05,2]
[423104363,1779853839000,-500.0,8.774e-05,2]
[423104364,1779853839000,-237.08,8.775e-05,2]
[423104362,1779853839000,-269.85,8.774e-05,2]
[423104365,1779853839000,-383.01,8.775e-05,2]
[423104366,1779853839000,-500.0,8.775e-05,2]
[423104342,1779853839000,-500.0,8.767e-05,2]
[423104343,1779853839000,-500.0,8.767e-05,2]
[423104306,1779853839000,-500.0,8.502e-05,2]
[423104336,1779853839000,-600.0,8.549e-05,2]
[423104337,1779853839000,-230.05600079,8.6e-05,2]
[423104305,1779853839000,-579.13580527,8.502e-05,2]
[423104310,1779853839000,-500.0,8.502e-05,2]
[423104308,1779853839000,-501.29724391,8.502e-05,2]
[423104311,1779853839000,-500.6248074,8.502e-05,2]
[423104312,1779853839000,-500.87157392,8.502e-05,2]
[423104316,1779853839000,-501.07137758,8.502e-05,2]
[423104313,1779853839000,-374.39995979,8.502e-05,2]
[423104317,1779853839000,-501.0081043,8.502e-05,2]
[423104319,1779853839000,-500.0,8.502e-05,2]
[423104314,1779853839000,-500.0,8.502e-05,2]
[423104320,1779853839000,-500.0,8.502e-05,2]
[423104318,1779853839000,-500.0,8.502e-05,2]
[423104322,1779853839000,-500.0,8.502e-05,2]
[423104303,1779853839000,-500.0,8.502e-05,2]
[423104323,1779853839000,-502.1130216,8.502e-05,2]
[423104321,1779853839000,-500.92633975,8.502e-05,2]
[423104334,1779853839000,-157.58302414,8.503e-05,2]
[423104328,1779853839000,-1000.0,8.503e-05,2]
[423104330,1779853839000,-1020.82275494,8.503e-05,2]
[423104327,1779853839000,-1000.0,8.503e-05,2]
[423104329,1779853839000,-1000.0,8.503e-05,2]
[423104335,1779853839000,-152.0,8.506e-05,7]
[423104326,1779853839000,-1000.0,8.503e-05,2]
[423104332,1779853839000,-151.0,8.503e-05,2]
[423104324,1779853839000,-501.48391881,8.502e-05,2]
[423104331,1779853839000,-151.0,8.503e-05,2]
[423104325,1779853839000,-500.58993994,8.502e-05,2]
[423104333,1779853839000,-151.0,8.503e-05,2]
[423104381,1779853840000,-500.0,8.776e-05,2]
[423104385,1779853840000,-500.0,8.776e-05,2]
[423104384,1779853840000,-636.44225645,8.776e-05,2]
[423104383,1779853840000,-500.0,8.776e-05,2]
[423104386,1779853840000,-500.0,8.776e-05,2]
[423104391,1779853840000,-100000.6604982,9e-05,2]
[423104389,1779853840000,-230.05600079,8.8e-05,2]
[423104393,1779853840000,-164465.05395275,9e-05,2]
[423104421,1779853840000,-500.0,9.041e-05,2]
[423104382,1779853840000,-479.55138893,8.776e-05,2]
[423104409,1779853840000,-319.94604725,9e-05,2]
[423104387,1779853840000,-428.93010932,8.776e-05,2]
[423104379,1779853840000,-500.0,8.775e-05,2]
[423104374,1779853840000,-500.0,8.775e-05,2]
[423104378,1779853840000,-500.0,8.775e-05,2]
[423104377,1779853840000,-500.0,8.775e-05,2]
[423104375,1779853840000,-308.1407352,8.775e-05,2]
[423104376,1779853840000,-3345.368,8.775e-05,2]
[423104373,1779853840000,-500.0,8.775e-05,2]
[423104371,1779853840000,-500.0,8.775e-05,2]
[423104370,1779853840000,-500.0,8.775e-05,2]
[423104372,1779853840000,-500.0,8.775e-05,2]
[423104369,1779853840000,-500.0,8.775e-05,2]
[423104367,1779853840000,-500.0,8.775e-05,2]
[423104368,1779853840000,-500.0,8.775e-05,2]
[423104425,1779853840000,-500.0,9.041e-05,2]
[423104380,1779853840000,-500.0,8.776e-05,2]
[423104423,1779853840000,-268.55397054,9.041e-05,2]
[423104407,1779853840000,-161.73615031,8.5e-05,2]
[423104411,1779853840000,-230.05600079,9e-05,2]
[423104458,1779853840000,-500.0,9.049e-05,2]
[423104427,1779853840000,-500.0,9.041e-05,2]
[423104457,1779853840000,-500.0,9.049e-05,2]
[423104455,1779853840000,-500.0,9.049e-05,2]
[423104456,1779853840000,-500.0,9.049e-05,2]
[423104453,1779853840000,-500.0,9.049e-05,2]
[423104454,1779853840000,-265.7174384,9.049e-05,2]
[423104451,1779853840000,-385.09,9.049e-05,2]
[423104450,1779853840000,-500.0,9.048e-05,2]
[423104449,1779853840000,-2507.17,9.048e-05,2]
[423104442,1779853840000,-376.77,9.048e-05,2]
[423104448,1779853840000,-187.37,9.048e-05,2]
[423104446,1779853840000,-500.0,9.048e-05,2]
[423104445,1779853840000,-500.0,9.048e-05,2]
[423104452,1779853840000,-500.0,9.049e-05,2]
[423104440,1779853840000,-500.0,9.048e-05,2]
[423104413,1779853840000,-238.53188428,9.011e-05,2]
[423104444,1779853840000,-500.0,9.048e-05,2]
[423104415,1779853840000,-500.0,9.041e-05,2]
[423104429,1779853840000,-545.36204412,9.042e-05,2]
[423104419,1779853840000,-500.0,9.041e-05,2]
[423104431,1779853840000,-500.0,9.042e-05,2]
[423104417,1779853840000,-500.0,9.041e-05,2]
[423104433,1779853840000,-500.0,9.042e-05,2]
[423104434,1779853840000,-500.0,9.042e-05,2]
[423104436,1779853840000,-520.81,9.048e-05,2]
[423104438,1779853840000,-500.0,9.048e-05,2]
[423104447,1779853840000,-500.0,9.048e-05,2]
[423104483,1779853841000,-500.0,9.315e-05,2]
[423104484,1779853841000,-500.0,9.315e-05,2]
[423104482,1779853841000,-500.0,9.315e-05,2]
[423104481,1779853841000,-214.09544003,9.315e-05,2]
[423104485,1779853841000,-500.0,9.316e-05,2]
[423104480,1779853841000,-500.0,9.315e-05,2]
[423104486,1779853841000,-500.0,9.316e-05,2]
[423104498,1779853841000,-500.0,9.323e-05,2]
[423104489,1779853841000,-500.0,9.322e-05,2]
[423104492,1779853841000,-500.0,9.322e-05,2]
[423104490,1779853841000,-500.0,9.322e-05,2]
[423104491,1779853841000,-500.0,9.322e-05,2]
[423104488,1779853841000,-520.81,9.322e-05,2]
[423104496,1779853841000,-500.0,9.322e-05,2]
[423104478,1779853841000,-363.40934965,9.129e-05,2]
[423104487,1779853841000,-500.0,9.316e-05,2]
[423104479,1779853841000,-500.0,9.315e-05,2]
[423104465,1779853841000,-500.0,9.05e-05,2]
[423104475,1779853841000,-151.0,9.109e-05,2]
[423104493,1779853841000,-500.0,9.322e-05,2]
[423104459,1779853841000,-500.0,9.049e-05,2]
[423104463,1779853841000,-500.0,9.049e-05,2]
[423104461,1779853841000,-500.0,9.049e-05,2]
[423104460,1779853841000,-3345.368,9.049e-05,2]
[423104462,1779853841000,-500.0,9.049e-05,2]
[423104464,1779853841000,-466.08,9.05e-05,2]
[423104466,1779853841000,-343.75783181,9.05e-05,2]
[423104468,1779853841000,-309.66399247,9.05e-05,2]
[423104467,1779853841000,-617.63166633,9.05e-05,2]
[423104473,1779853841000,-742.0,9.094e-05,2]
[423104469,1779853841000,-1416.364,9.094e-05,2]
[423104472,1779853841000,-445.384,9.094e-05,2]
[423104471,1779853841000,-651.011,9.094e-05,2]
[423104470,1779853841000,-2210.045,9.094e-05,2]
[423104474,1779853841000,-185.0,9.094e-05,2]
[423104476,1779853841000,-151.0,9.109e-05,2]
[423104477,1779853841000,-326.065895,9.109e-05,2]
[423104497,1779853841000,-559.39,9.323e-05,2]
[423104513,1779853841000,-540.02171874,9.589e-05,2]
[423104495,1779853841000,-2507.17,9.322e-05,2]
[423104520,1779853841000,-500.0,9.596e-05,2]
[423104523,1779853841000,-500.0,9.596e-05,2]
[423104521,1779853841000,-430.55822974,9.596e-05,2]
[423104524,1779853841000,-500.0,9.596e-05,2]
[423104525,1779853841000,-500.0,9.596e-05,2]
[423104527,1779853841000,-500.0,9.596e-05,2]
[423104526,1779853841000,-2507.17,9.596e-05,2]
[423104522,1779853841000,-500.0,9.596e-05,2]
[423104529,1779853841000,-500.0,9.597e-05,2]
[423104531,1779853841000,-500.0,9.597e-05,2]
[423104533,1779853841000,-500.0,9.597e-05,2]
[423104535,1779853841000,-68248.04059923,9.629e-05,2]
[423104534,1779853841000,-500.0,9.598e-05,2]
[423104532,1779853841000,-500.0,9.597e-05,2]
[423104536,1779853841000,-863.17575653,9.629e-05,2]
[423104494,1779853841000,-500.0,9.322e-05,2]
[423104530,1779853841000,-500.0,9.597e-05,2]
[423104519,1779853841000,-520.81,9.596e-05,2]
[423104528,1779853841000,-500.0,9.597e-05,2]
[423104517,1779853841000,-500.0,9.59e-05,2]
[423104500,1779853841000,-500.0,9.323e-05,2]
[423104502,1779853841000,-155.26462648,9.323e-05,2]
[423104504,1779853841000,-1038.8346,9.323e-05,2]
[423104501,1779853841000,-500.0,9.323e-05,2]
[423104503,1779853841000,-500.0,9.323e-05,2]
[423104505,1779853841000,-500.0,9.323e-05,2]
[423104499,1779853841000,-500.0,9.323e-05,2]
[423104518,1779853841000,-500.0,9.59e-05,2]
[423104506,1779853841000,-387.46608683,9.323e-05,2]
[423104511,1779853841000,-203.95602357,9.589e-05,2]
[423104509,1779853841000,-720.0,9.403e-05,2]
[423104508,1779853841000,-500.0,9.324e-05,2]
[423104507,1779853841000,-248.94,9.323e-05,2]
[423104512,1779853841000,-500.0,9.589e-05,2]
[423104514,1779853841000,-500.0,9.589e-05,2]
[423104516,1779853841000,-500.0,9.59e-05,2]
[423104515,1779853841000,-500.0,9.589e-05,2]
[423104510,1779853841000,-681.05797934,9.585e-05,2]
[423104550,1779853843000,-403.29280148,8.493e-05,2]
[423104560,1779853846000,-627.86679031,8.408e-05,2]
[423104568,1779854838000,152.0,0.00014404,30]
[423104570,1779854984000,-2835.44149253,6.584e-05,2]
[423104573,1779854984000,-300.0,6.716e-05,2]
[423104572,1779854984000,-366.01944554,6.685e-05,2]
[423104575,1779854984000,-500.0,6.717e-05,2]
[423104574,1779854984000,-500.0,6.717e-05,2]
[423104576,1779854984000,-498.53906193,6.717e-05,2]
[423104571,1779854984000,-5000.0,6.651e-05,2]
[423104577,1779854986000,-1.46093807,6.717e-05,2]
[423104579,1779854986000,-500.0,6.717e-05,2]
[423104580,1779854986000,-500.0,6.717e-05,2]
[423104581,1779854986000,-500.0,6.717e-05,2]
[423104582,1779854986000,-500.0,6.717e-05,2]
[423104583,1779854986000,-500.0,6.717e-05,2]
[423104585,1779854986000,-500.0,6.717e-05,2]
[423104584,1779854986000,-500.0,6.717e-05,2]
[423104586,1779854986000,-500.0,6.717e-05,2]
[423104587,1779854986000,-500.0,6.717e-05,2]
[423104578,1779854986000,-500.15293348,6.717e-05,2]
[423104588,1779854986000,-500.0,6.717e-05,2]
[423104589,1779854986000,-578.77434125,6.717e-05,2]
[423104598,1779854986000,-233.071664,6.717e-05,2]
[423104597,1779854986000,-500.0,6.717e-05,2]
[423104596,1779854986000,-500.0,6.717e-05,2]
[423104595,1779854986000,-500.0,6.717e-05,2]
[423104590,1779854986000,-152.30044204,6.717e-05,2]
[423104594,1779854986000,-500.0,6.717e-05,2]
[423104593,1779854986000,-500.0,6.717e-05,2]
[423104591,1779854986000,-500.0,6.717e-05,2]
[423104592,1779854986000,-534.23968116,6.717e-05,2]
[423104599,1779854988000,-266.928336,6.717e-05,2]
[423104601,1779854988000,-500.0,6.717e-05,2]
[423104600,1779854988000,-500.0,6.717e-05,2]
[423104603,1779854988000,-500.0,6.717e-05,2]
[423104602,1779854988000,-500.0,6.717e-05,2]
[423104605,1779854988000,-500.0,6.717e-05,2]
[423104604,1779854988000,-500.0,6.717e-05,2]
[423104607,1779854988000,-500.0,6.717e-05,2]
[423104606,1779854988000,-500.0,6.717e-05,2]
[423104610,1779854988000,-500.0,6.717e-05,2]
[423104609,1779854988000,-500.0,6.717e-05,2]
[423104612,1779854988000,-500.0,6.717e-05,2]
[423104614,1779854988000,-500.0,6.717e-05,2]
[423104613,1779854988000,-500.0,6.717e-05,2]
[423104615,1779854988000,-500.0,6.717e-05,2]
[423104617,1779854988000,-500.0,6.717e-05,2]
[423104616,1779854988000,-500.0,6.717e-05,2]
[423104618,1779854988000,-733.071664,6.718e-05,2]
[423104608,1779854988000,-500.0,6.717e-05,2]
[423104611,1779854988000,-500.0,6.717e-05,2]
[423104619,1779854989000,-4266.928336,6.718e-05,2]
[423104620,1779854989000,-151.0,6.855e-05,2]
[423104621,1779854991000,5000.0,6.65e-05,2]
[423104685,1779855032000,-500.0,8.219e-05,2]
[423104659,1779855032000,-405.89418017,6.993e-05,2]
[423104673,1779855032000,-4594.10581983,6.993e-05,2]
[423104675,1779855032000,-5000.0,7.064e-05,2]
[423104689,1779855032000,-251.60389156,8.219e-05,2]
[423104687,1779855032000,-500.0,8.219e-05,2]
[423104681,1779855032000,-500.0,8.219e-05,2]
[423104679,1779855032000,-300.0,8.218e-05,2]
[423104683,1779855032000,-500.0,8.219e-05,2]
[423104677,1779855032000,-172.107495,7.475e-05,2]
[423105650,1779855044000,-741.48,8.056e-05,2]
[423105977,1779855046000,-500.0,8.219e-05,2]
[423105970,1779855046000,-5000.0,8.137e-05,2]
[423105980,1779855046000,-500.0,8.219e-05,2]
[423105971,1779855046000,-357.26565153,8.219e-05,2]
[423105968,1779855046000,-4258.52,8.056e-05,2]
[423105982,1779855046000,-500.0,8.219e-05,2]
[423105974,1779855046000,-500.0,8.219e-05,2]
[423105983,1779855046000,-500.0,8.219e-05,2]
[423105985,1779855046000,-500.0,8.219e-05,2]
[423105976,1779855046000,-500.0,8.219e-05,2]
[423105991,1779855046000,-500.0,8.219e-05,2]
[423105987,1779855046000,-500.0,8.219e-05,2]
[423106003,1779855046000,-500.0,8.219e-05,2]
[423105993,1779855046000,-500.0,8.219e-05,2]
[423105999,1779855046000,-500.0,8.219e-05,2]
[423106001,1779855046000,-500.0,8.219e-05,2]
[423105997,1779855046000,-500.0,8.219e-05,2]
[423106005,1779855046000,-504.72998687,8.219e-05,2]
[423105989,1779855046000,-500.0,8.219e-05,2]
[423105995,1779855046000,-500.0,8.219e-05,2]
[423106076,1779855047000,-568.17,8.219e-05,2]
[423106078,1779855047000,-500.0,8.219e-05,2]
[423106090,1779855047000,-500.47685684,8.219e-05,2]
[423106073,1779855047000,-500.0,8.219e-05,2]
[423106075,1779855047000,-503.46104,8.219e-05,2]
[423106085,1779855047000,-500.0,8.219e-05,2]
[423106086,1779855047000,-500.0,8.219e-05,2]
[423106092,1779855047000,-500.0,8.219e-05,2]
[423106083,1779855047000,-500.0,8.219e-05,2]
[423106081,1779855047000,-500.0,8.219e-05,2]
[423106071,1779855047000,-500.0,8.219e-05,2]
[423106088,1779855047000,-500.0,8.219e-05,2]
[423106094,1779855047000,-500.0,8.219e-05,2]
[423106105,1779855047000,-500.0,8.219e-05,2]
[423106099,1779855047000,-500.0,8.219e-05,2]
[423106113,1779855047000,-500.0,8.219e-05,2]
[423106115,1779855047000,-500.0,8.219e-05,2]
[423106119,1779855047000,-501.016517,8.219e-05,2]
[423106107,1779855047000,-500.0,8.219e-05,2]
[423106101,1779855047000,-500.0,8.219e-05,2]
[423106103,1779855047000,-500.0,8.219e-05,2]
[423106111,1779855047000,-500.0,8.219e-05,2]
[423106109,1779855047000,-500.0,8.219e-05,2]
[423106117,1779855047000,-500.0,8.219e-05,2]
[423106124,1779855047000,-500.0,8.219e-05,2]
[423106126,1779855047000,-500.0,8.219e-05,2]
[423106067,1779855047000,-500.0,8.219e-05,2]
[423106096,1779855047000,-485.92723352,8.219e-05,2]
[423106121,1779855047000,-500.0,8.219e-05,2]
[423106035,1779855047000,-500.0,8.219e-05,2]
[423106056,1779855047000,-500.0,8.219e-05,2]
[423106007,1779855047000,-229.00984794,8.219e-05,2]
[423106014,1779855047000,-500.0,8.219e-05,2]
[423106009,1779855047000,-500.0,8.219e-05,2]
[423106006,1779855047000,-500.0,8.219e-05,2]
[423106012,1779855047000,-500.0,8.219e-05,2]
[423106016,1779855047000,-500.0,8.219e-05,2]
[423106018,1779855047000,-584.48667769,8.219e-05,2]
[423106020,1779855047000,-500.0,8.219e-05,2]
[423106024,1779855047000,-377.92439818,8.219e-05,2]
[423106028,1779855047000,-500.0,8.219e-05,2]
[423106026,1779855047000,-500.0,8.219e-05,2]
[423106031,1779855047000,-500.0,8.219e-05,2]
[423106029,1779855047000,-500.0,8.219e-05,2]
[423106065,1779855047000,-500.0,8.219e-05,2]
[423106022,1779855047000,-500.0,8.219e-05,2]
[423106132,1779855047000,-1000.0,8.219e-05,2]
[423106037,1779855047000,-563.93,8.219e-05,2]
[423106039,1779855047000,-500.0,8.219e-05,2]
[423106040,1779855047000,-500.0,8.219e-05,2]